bitfinex-derivatives/quotes_BTCF0:USTF0_20241210
["timestamp","ask_amount","ask_price","bid_price","bid_amount"]
[1733806558466,0.051628,96960.0,96959.0,0.00011455]
[1733806563375,8e-05,96960.0,96959.0,0.00011455]
[1733806563967,8e-05,96960.0,96959.0,0.28118685]
[1733806564168,8e-05,96960.0,96959.0,0.5855816]
[1733806564368,8e-05,96960.0,96959.0,0.00011455]
[1733806564670,8e-05,96960.0,96959.0,0.3045093]
[1733806564866,0.05154,96976.0,96960.0,0.051548]
[1733806565072,0.3608,96984.0,96973.0,0.18265108]
[1733806565073,0.051541,96974.0,96973.0,0.18265108]
[1733806565272,0.051541,96974.0,96969.0,0.60433478]
[1733806565479,0.051541,96974.0,96970.0,0.24353478]
[1733806566175,0.051537,96982.0,96976.0,0.05154]
[1733806566380,0.051537,96982.0,96980.0,0.3608]
[1733806566676,0.051537,96982.0,96980.0,0.54344617]
[1733806567366,0.3608,96993.0,96981.0,0.051536]
[1733806567571,0.3608,96993.0,96983.0,0.18264246]
[1733806567572,0.36769888,96993.0,96983.0,0.18264246]
[1733806567774,0.41922988,96993.0,96992.0,4e-05]
[1733806571081,0.051534,96986.0,96985.0,0.15518579]
[1733806571479,0.36845888,96993.0,96980.0,0.0006]
[1733806571480,0.051537,96981.0,96980.0,0.0006]
[1733806571774,0.36088,96981.0,96974.0,0.24353478]
[1733806571974,0.051541,96974.0,96973.0,0.24353478]
[1733806572382,8e-05,96974.0,96967.0,0.24398894]
[1733806572579,0.051545,96966.0,96964.0,0.24398894]
[1733806572774,8e-05,96968.0,96960.0,0.24398894]
[1733806572979,0.051547,96962.0,96959.0,0.00011455]
[1733806573293,0.051628,96960.0,96959.0,0.00011455]
[1733806573788,8e-05,96960.0,96959.0,0.00011455]
[1733806575389,8e-05,96960.0,96959.0,0.28046935]
[1733806576689,0.051534,96986.0,96962.0,0.051547]
[1733806576878,0.051532,96991.0,96983.0,0.24408179]
[1733806577080,0.051532,96991.0,96985.0,0.24408179]
[1733806577394,0.051534,96987.0,96985.0,0.051535]
[1733806578588,0.00755589,97000.0,96986.0,0.24408179]
[1733806578887,0.3608,97003.0,96999.0,4e-05]
[1733806579288,0.412325,97003.0,97002.0,4e-05]
[1733806581193,0.42002929,97003.0,97002.0,4e-05]
[1733806582482,0.42002929,97003.0,97002.0,0.00014876]
[1733806582483,0.05922929,97003.0,97002.0,0.00014876]
[1733806583280,0.051522,97010.0,97002.0,0.00014876]
[1733806583489,0.05904979,97010.0,97002.0,0.00014876]
[1733806583688,0.05904979,97010.0,97009.0,4e-05]
[1733806587384,0.41984979,97010.0,97009.0,4e-05]
[1733806590601,0.0001298,97018.0,97011.0,0.05152]
[1733806590791,0.0001298,97018.0,97017.0,0.3608]
[1733806590988,0.0001298,97018.0,97017.0,0.36084]
[1733806592889,0.051507,97039.0,97017.0,0.36084]
[1733806593089,0.197704,97045.0,97037.0,0.3608]
[1733806593293,0.05905077,97045.0,97039.0,0.051506]
[1733806593497,0.05905077,97045.0,97044.0,4e-05]
[1733806594200,0.05905077,97045.0,97044.0,0.00015419]
[1733806600401,0.05152,97014.0,97013.0,0.3608]
[1733806600799,0.0516,97014.0,97013.0,0.3608]
[1733806601398,0.0516,97014.0,97013.0,0.36089101]
[1733806602002,8e-05,97014.0,97013.0,0.41241101]
[1733806604107,0.3608,97054.0,97013.0,0.66089101]
[1733806604300,0.1557,97061.0,97031.0,0.05151]
[1733806604301,0.051506,97039.0,97031.0,0.05151]
[1733806605610,0.00774852,97048.0,97031.0,0.05151]
[1733806605806,0.051507,97037.0,97031.0,0.05151]
[1733806606200,0.3608,97057.0,97031.0,0.05151]
[1733806606201,0.051508,97036.0,97031.0,0.05151]
[1733806607002,0.36854472,97057.0,97029.0,0.3608]
[1733806607306,0.36854472,97057.0,97056.0,4e-05]
[1733806607502,0.42004072,97057.0,97056.0,4e-05]
[1733806612414,0.42004072,97057.0,97056.0,0.00015407]
[1733806613817,0.05924072,97057.0,97056.0,0.00015407]
[1733806624011,0.51265812,97057.0,97056.0,0.00015407]
[1733806624415,0.51243849,97057.0,97056.0,0.00015407]
[1733806624613,0.51243847,97057.0,97056.0,0.00015407]
[1733806625112,0.51243847,97057.0,97037.0,0.3608]
[1733806625113,0.051506,97039.0,97037.0,0.3608]
[1733806625311,0.491637,97057.0,97037.0,0.3608]
[1733806625312,0.46094832,97057.0,97037.0,0.3608]
[1733806625516,0.051502,97047.0,97040.0,0.31698635]
[1733806625718,0.42004072,97057.0,97056.0,4e-05]
[1733806626023,0.42004072,97057.0,97056.0,0.00014425]
[1733806628819,0.05924072,97057.0,97056.0,0.00014425]
[1733806635926,0.42004072,97057.0,97056.0,0.00014425]
[1733806638132,0.05924072,97057.0,97056.0,0.00014425]
[1733806642728,0.1518364,97057.0,97056.0,0.00014425]
[1733806642927,0.05924072,97057.0,97056.0,0.00014425]
[1733806643527,0.1827032,97057.0,97056.0,0.00014425]
[1733806643723,0.05924072,97057.0,97056.0,0.00014425]
[1733806643929,0.10931572,97057.0,97033.0,0.30510224]
[1733806644133,0.10931572,97057.0,97027.0,0.72692269]
[1733806644134,0.09260425,97048.0,97039.0,0.24347986]
[1733806644329,0.09260425,97049.0,97041.0,0.2434316]
[1733806644635,0.051504,97042.0,97041.0,0.2434316]
[1733806644831,0.051504,97042.0,97041.0,0.00010382]
[1733806649439,0.07431448,97050.0,97041.0,0.00010382]
[1733806649440,0.09255497,97048.0,97042.0,0.051504]
[1733806649636,0.18463843,97071.0,97041.0,0.77570958]
[1733806649637,0.00819054,97050.0,97044.0,0.30510224]
[1733806649936,0.00819054,97050.0,97041.0,0.36142382]
[1733806649937,0.051498,97053.0,97049.0,0.3608]
[1733806650139,0.07431448,97060.0,97049.0,0.3608]
[1733806650140,0.051498,97054.0,97049.0,0.3608]
[1733806650327,0.051499,97051.0,97049.0,0.3608]
[1733806651135,0.051499,97051.0,97049.0,0.5049]
[1733806652131,0.05959038,97051.0,97049.0,0.5049]
[1733806653031,0.05959038,97051.0,97049.0,0.1441]
[1733806653530,0.05959038,97051.0,97049.0,0.38741283]
[1733806653937,0.05959038,97051.0,97050.0,0.24331283]
[1733806654135,0.05959038,97051.0,97049.0,0.24331283]
[1733806654334,0.36889138,97051.0,97034.0,0.15069724]
[1733806654532,0.051511,97030.0,97029.0,0.36132]
[1733806654735,0.3608,97033.0,97024.0,0.30510224]
[1733806654933,0.07439448,97030.0,97015.0,0.30510224]
[1733806655136,0.051519,97016.0,97014.0,0.30510224]
[1733806655437,8e-05,97025.0,97015.0,0.00012363]
[1733806655639,0.051519,97016.0,97015.0,0.00012363]
[1733806658635,0.00832054,97019.0,97015.0,0.00012363]
[1733806658834,8e-05,97030.0,97015.0,0.00012363]
[1733806659042,0.051518,97018.0,97015.0,0.00012363]
[1733806659939,0.00816528,97030.0,97015.0,0.00012363]
[1733806659940,0.051512,97029.0,97015.0,0.00012363]
[1733806660134,0.051518,97017.0,97015.0,0.00012363]
[1733806660639,0.051518,97017.0,97015.0,0.36092363]
[1733806662843,0.051512,97023.0,97018.0,0.051515]
[1733806663144,0.051512,97023.0,97021.0,0.051513]
[1733806663332,0.051588,97030.0,97028.0,0.051509]
[1733806663531,0.051588,97030.0,97029.0,0.1446]
[1733806663744,8e-05,97030.0,97029.0,0.14464]
[1733806664130,0.3608,97060.0,97029.0,0.14464]
[1733806664330,0.051499,97044.0,97043.0,0.3608]
[1733806672552,0.051496,97051.0,97043.0,0.3608]
[1733806672850,0.05974298,97051.0,97043.0,0.3608]
[1733806674144,0.05974298,97051.0,97046.0,0.051498]
[1733806674145,0.00824698,97051.0,97046.0,0.051498]
[1733806674354,0.051492,97058.0,97046.0,0.051498]
[1733806674747,0.051492,97058.0,97057.0,4e-05]
[1733806690070,0.051492,97058.0,97057.0,0.00017271]
[1733806690671,0.051492,97058.0,97057.0,0.00339169]
[1733806690868,0.051492,97058.0,97057.0,0.00339167]
[1733806691068,0.051492,97058.0,97057.0,0.1857315]
[1733806691378,0.051492,97058.0,97057.0,0.00339167]
[1733806691773,0.00802807,97063.0,97062.0,0.05149]
[1733806692075,0.09246564,97069.0,97062.0,0.00325896]
[1733806692377,0.051489,97064.0,97063.0,0.00321896]
[1733806698973,0.412289,97064.0,97063.0,0.00321896]
[1733806699175,0.051489,97064.0,97063.0,0.00321896]
[1733806699580,0.051491,97060.0,97059.0,0.18228235]
[1733806699775,0.3608,97060.0,97057.0,0.00013271]
[1733806700082,0.09254841,97058.0,97057.0,0.00013271]
[1733806700276,0.09254841,97059.0,97057.0,0.00013271]
[1733806700481,0.09254841,97059.0,97035.0,0.36612269]
[1733806700482,0.051498,97047.0,97046.0,0.18225252]
[1733806700685,0.051498,97047.0,97038.0,0.18225252]
[1733806700686,0.0515,97043.0,97038.0,0.18225252]
[1733806700870,0.09255879,97043.0,97037.0,0.18225252]
[1733806701182,0.051504,97036.0,97035.0,0.18225252]
[1733806701382,0.051505,97033.0,97032.0,0.3608]
[1733806701569,0.051505,97033.0,97032.0,0.36091086]
[1733806701776,0.051585,97033.0,97032.0,0.36091086]
[1733806703577,0.051585,97033.0,97032.0,0.54319958]
[1733806704783,0.051585,97033.0,97032.0,0.36091086]
[1733806705984,0.06030423,97033.0,97032.0,0.36091086]
[1733806710183,0.06030423,97033.0,97032.0,0.00011086]
[1733806711791,0.06030423,97033.0,97032.0,0.00333092]
[1733806713792,0.051585,97033.0,97032.0,0.36413092]
[1733806716191,0.051585,97033.0,97032.0,0.36091086]
[1733806716387,0.051585,97033.0,97032.0,0.36413041]
[1733806716580,0.051585,97033.0,97032.0,0.36091086]
[1733806716781,0.051585,97033.0,97032.0,0.36413064]
[1733806723295,0.051585,97033.0,97032.0,0.54596418]
[1733806723485,0.051585,97033.0,97032.0,0.36413064]
[1733806724296,0.046585,97033.0,97032.0,0.36413064]
[1733806724496,0.046585,97033.0,97032.0,0.54596418]
[1733806725588,0.046585,97033.0,97032.0,0.36413064]
[1733806726303,0.046585,97033.0,97032.0,0.54623427]
[1733806726491,0.046585,97033.0,97032.0,0.36413064]
[1733806728396,8e-05,97033.0,97032.0,0.60664548]
[1733806728592,8e-05,97033.0,97032.0,0.36413064]
[1733806728984,8e-05,97033.0,97032.0,0.60724507]
[1733806729193,8e-05,97033.0,97032.0,0.36413064]
[1733806729392,8e-05,97033.0,97032.0,0.54649995]
[1733806729585,8e-05,97033.0,97032.0,0.36413064]
[1733806730093,8e-05,97033.0,97032.0,0.60724507]
[1733806730506,8e-05,97033.0,97032.0,0.36413064]
[1733806731890,8e-05,97033.0,97032.0,0.36091086]
[1733806732091,8e-05,97033.0,97032.0,0.36735028]
[1733806732994,8e-05,97033.0,97032.0,0.64351411]
[1733806735085,8e-05,97033.0,97032.0,0.6435139]
[1733806737792,8e-05,97033.0,97032.0,0.64029419]
[1733806738193,8e-05,97038.0,97032.0,0.64005098]
[1733806738388,0.051499,97046.0,97042.0,0.051501]
[1733806738594,0.051499,97046.0,97045.0,0.3608]
[1733806738797,0.051499,97046.0,97045.0,0.3640195]
[1733806739001,0.051499,97046.0,97045.0,0.6677531]
[1733806739586,0.051499,97046.0,97045.0,0.3640195]
[1733806740398,0.051499,97046.0,97045.0,0.6400729]
[1733806741295,0.051499,97046.0,97045.0,0.94361636]
[1733806741501,0.051499,97046.0,97045.0,0.6400729]
[1733806742101,0.051499,97046.0,97045.0,0.94363759]
[1733806742395,0.051499,97046.0,97045.0,0.66758419]
[1733806742702,0.051499,97046.0,97045.0,0.6398427]
[1733806743101,0.051499,97046.0,97045.0,0.94340826]
[1733806743306,0.051499,97046.0,97045.0,0.3640195]
[1733806743896,0.051493,97057.0,97045.0,0.63974608]
[1733806744105,0.051493,97057.0,97056.0,0.3608]
[1733806744290,0.051493,97057.0,97056.0,0.3640195]
[1733806744691,0.051493,97057.0,97056.0,0.60686648]
[1733806744892,0.051493,97057.0,97056.0,0.60690648]
[1733806745094,0.051493,97057.0,97056.0,0.3640595]
[1733806746101,0.051493,97057.0,97056.0,0.54618026]
[1733806746301,0.051493,97057.0,97056.0,0.0032595]
[1733806748503,0.051493,97057.0,97056.0,4e-05]
[1733806748807,0.06017484,97057.0,97056.0,4e-05]
[1733806750105,0.06017484,97057.0,97056.0,0.00325921]
[1733806750106,0.42097484,97057.0,97056.0,0.00325921]
[1733806750307,0.051496,97050.0,97047.0,0.18212681]
[1733806750497,0.051497,97048.0,97046.0,0.18212681]
[1733806750701,0.051498,97046.0,97045.0,0.2770947]
[1733806751004,0.051578,97046.0,97045.0,0.2770947]
[1733806751209,0.01224818,97046.0,97038.0,0.18618592]
[1733806751399,0.0515,97044.0,97037.0,4e-05]
[1733806751600,8e-05,97039.0,97037.0,4e-05]
[1733806751800,0.01224818,97038.0,97037.0,4e-05]
[1733806752199,8e-05,97038.0,97037.0,4e-05]
[1733806753707,0.051583,97038.0,97037.0,4e-05]
[1733806756310,0.14414179,97038.0,97037.0,4e-05]
[1733806757302,0.051583,97038.0,97037.0,4e-05]
[1733806758205,0.051583,97038.0,97037.0,0.01735941]
[1733806758402,8e-05,97038.0,97037.0,0.01735941]
[1733806760913,0.051583,97038.0,97037.0,0.37815941]
[1733806761112,8e-05,97038.0,97037.0,0.37815941]
[1733806761409,8e-05,97038.0,97037.0,1.09717336]
[1733806761601,8e-05,97038.0,97037.0,0.79361463]
[1733806762003,8e-05,97038.0,97037.0,1.15809506]
[1733806762207,8e-05,97038.0,97037.0,1.15809409]
[1733806762412,8e-05,97038.0,97037.0,1.16131314]
[1733806763012,8e-05,97038.0,97037.0,0.79683271]
[1733806764111,8e-05,97038.0,97037.0,0.80570625]
[1733806766305,8e-05,97039.0,97037.0,0.80570625]
[1733806766506,8e-05,97039.0,97038.0,0.29149271]
[1733806766709,8e-05,97039.0,97038.0,0.29153271]
[1733806768215,8e-05,97039.0,97038.0,0.291533]
[1733806769313,8e-05,97039.0,97038.0,0.32436166]
[1733806769908,8e-05,97039.0,97038.0,0.38137778]
[1733806770212,8e-05,97039.0,97038.0,0.65206892]
[1733806770714,8e-05,97039.0,97038.0,0.63153114]
[1733806770916,8e-05,97039.0,97038.0,0.6520674]
[1733806771505,8e-05,97039.0,97038.0,0.63153114]
[1733806771710,8e-05,97039.0,97038.0,0.65203711]
[1733806773812,0.051493,97056.0,97051.0,0.051496]
[1733806774125,0.051493,97056.0,97055.0,0.36275044]
[1733806774421,0.051493,97056.0,97055.0,0.38138069]
[1733806774611,0.051493,97056.0,97055.0,0.37301092]
[1733806774808,0.051493,97056.0,97055.0,0.38137965]
[1733806778013,0.051493,97056.0,97055.0,0.38137595]
[1733806778715,0.051492,97059.0,97055.0,0.43286995]
[1733806778914,0.051492,97059.0,97056.0,0.02053595]
[1733806779112,0.051492,97059.0,97058.0,4e-05]
[1733806779327,0.051492,97059.0,97058.0,0.02057595]
[1733806784232,0.051492,97059.0,97058.0,0.02057673]
[1733806784925,0.412292,97059.0,97058.0,0.02057673]
[1733806785226,0.50485079,97059.0,97058.0,0.02057673]
[1733806785417,0.412292,97059.0,97058.0,0.02057673]
[1733806786326,0.5355033,97059.0,97058.0,0.02057673]
[1733806786822,0.412292,97059.0,97058.0,0.02057673]
[1733806787322,0.412292,97059.0,97058.0,0.02054573]
[1733806787323,0.412291,97059.0,97058.0,0.02054573]
[1733806787514,0.412291,97059.0,97045.0,0.3608]
[1733806787719,0.051498,97046.0,97045.0,0.3608]
[1733806787931,0.051578,97046.0,97045.0,0.3608]
[1733806788931,0.051503,97038.0,97037.0,4e-05]
[1733806789437,0.051583,97038.0,97037.0,4e-05]
[1733806797635,0.051583,97038.0,97037.0,0.00519166]
[1733806798226,0.055583,97038.0,97037.0,0.00515166]
[1733806798740,0.00408,97038.0,97037.0,0.00515166]
[1733806799726,0.00408,97038.0,97037.0,0.00837085]
[1733806800125,0.00108,97038.0,97037.0,0.00837085]
[1733806800633,8e-05,97038.0,97037.0,0.00837085]
[1733806800832,8e-05,97038.0,97037.0,0.01037085]
[1733806801032,0.051495,97052.0,97044.0,0.051499]
[1733806801228,0.051495,97052.0,97051.0,0.3608]
[1733806801427,0.051495,97052.0,97051.0,0.38114478]
[1733806802127,0.051495,97052.0,97051.0,0.02034478]
[1733806802430,0.051495,97052.0,97051.0,0.00841085]
[1733806802841,0.00885378,97061.0,97060.0,0.051491]
[1733806803139,0.05149,97062.0,97060.0,0.36917085]
[1733806803438,0.05149,97062.0,97061.0,0.02030164]
[1733806803737,0.05149,97062.0,97061.0,0.02034164]
[1733806804140,0.051499,97045.0,97044.0,0.00194833]
[1733806804433,0.051501,97040.0,97038.0,0.3608]
[1733806804836,8e-05,97039.0,97038.0,0.3608]
[1733806805336,8e-05,97039.0,97032.0,0.00011086]
[1733806805633,8e-05,97039.0,97037.0,0.051503]
[1733806805833,0.5076,97068.0,97038.0,0.442]
[1733806806038,0.05849,97062.0,97061.0,0.001]
[1733806806726,0.051494,97055.0,97047.0,0.3608]
[1733806808339,0.051494,97054.0,97047.0,0.3608]
[1733806808525,0.051495,97053.0,97047.0,0.3608]
[1733806809535,0.051495,97052.0,97047.0,0.3608]
[1733806809834,0.002,97053.0,97047.0,0.3608]
[1733806810033,0.051496,97050.0,97047.0,0.3608]
[1733806810241,0.051497,97049.0,97047.0,0.3608]
[1733806811032,0.002,97052.0,97048.0,0.3608]
[1733806811230,0.051489,97064.0,97058.0,0.051492]
[1733806811440,0.051489,97064.0,97063.0,0.3608]
[1733806812933,0.056489,97064.0,97063.0,0.3618]
[1733806814248,0.056489,97064.0,97063.0,0.36694994]
[1733806815839,0.056489,97064.0,97063.0,0.00614994]
[1733806816237,0.056489,97064.0,97063.0,0.00421903]
[1733806816433,0.056489,97064.0,97063.0,0.00936941]
[1733806817838,0.005,97064.0,97063.0,0.00936941]
[1733806819450,0.056489,97064.0,97063.0,0.00936941]
[1733806822045,0.056489,97064.0,97063.0,0.00936886]
[1733806823543,0.056489,97064.0,97063.0,0.00421879]
[1733806824342,0.056489,97064.0,97063.0,0.00321879]
[1733806825246,0.14903264,97064.0,97063.0,0.00321879]
[1733806825442,0.14903264,97064.0,97051.0,4e-05]
[1733806825658,0.051495,97053.0,97052.0,0.00837005]
[1733806827052,0.051495,97053.0,97031.0,0.24247661]
[1733806827053,0.051505,97033.0,97031.0,0.24247661]
[1733806827254,0.051505,97033.0,97027.0,0.24247661]
[1733806827443,0.051505,97033.0,97028.0,0.24247661]
[1733806827757,0.051505,97033.0,97027.0,0.24247661]
[1733806827943,0.051505,97033.0,97026.0,0.24247661]
[1733806828147,0.051505,97033.0,97025.0,0.24247661]
[1733806828952,0.051512,97020.0,97017.0,0.00056]
[1733806829159,0.051514,97016.0,96995.0,0.30373452]
[1733806829343,0.36088,97018.0,97002.0,0.3608]
[1733806829543,0.051514,97016.0,97004.0,0.05152]
[1733806829749,0.051514,97016.0,97010.0,0.3608]
[1733806830046,0.07413974,97030.0,97011.0,7.847e-05]
[1733806830245,0.37081709,97033.0,97017.0,4e-05]
[1733806830454,0.37005709,97033.0,97017.0,4e-05]
[1733806830651,0.051512,97020.0,97011.0,0.14577847]
[1733806830853,0.051508,97029.0,97011.0,0.14577847]
[1733806831054,0.051513,97019.0,97011.0,0.14577847]
[1733806831254,0.051513,97018.0,97011.0,0.14577847]
[1733806831760,0.051514,97017.0,97011.0,0.14577847]
[1733806832956,0.07413974,97030.0,97011.0,0.15077847]
[1733806833158,0.37081709,97033.0,97019.0,0.3608]
[1733806833466,0.00925709,97033.0,97020.0,0.1492]
[1733806833654,0.37749974,97040.0,97020.0,0.1492]
[1733806833962,0.051511,97022.0,97020.0,0.1492]
[1733806834260,0.051512,97020.0,97019.0,0.3648]
[1733806835158,0.051592,97020.0,97019.0,0.3648]
[1733806835754,0.051592,97020.0,97019.0,0.3608]
[1733806836458,0.051592,97020.0,97019.0,0.3638]
[1733806836850,0.051592,97020.0,97019.0,0.3608]
[1733806837055,0.051592,97020.0,97019.0,0.36895207]
[1733806838453,0.06062887,97020.0,97019.0,0.36895207]
[1733806839151,0.06062887,97020.0,97019.0,0.37017202]
[1733806839754,0.06062887,97020.0,97019.0,0.37217202]
[1733806843761,0.06062887,97020.0,97019.0,0.3648]
[1733806843957,0.06062887,97020.0,97019.0,0.37317184]
[1733806844153,0.06062887,97020.0,97019.0,0.3648]
[1733806844453,0.051592,97020.0,97019.0,0.37317187]
[1733806845665,0.051592,97020.0,97019.0,0.37217187]
[1733806846259,8e-05,97020.0,97019.0,0.36917187]
[1733806846561,8e-05,97020.0,97019.0,0.37317187]
[1733806847067,8e-05,97020.0,97019.0,0.37217187]
[1733806848161,8e-05,97020.0,97019.0,0.38146973]
[1733806848369,8e-05,97020.0,97019.0,0.37846973]
[1733806848563,8e-05,97020.0,97019.0,0.37317187]
[1733806848865,8e-05,97020.0,97019.0,0.01237187]
[1733806849868,0.82358,97020.0,97019.0,0.01237187]
[1733806850165,0.051516,97012.0,97011.0,7.847e-05]
[1733806850365,0.412316,97012.0,97011.0,7.847e-05]
[1733806851072,0.412356,97012.0,97011.0,7.847e-05]
[1733806851868,0.427836,97012.0,96987.0,0.1547]
[1733806852071,0.427836,97012.0,96979.0,0.051534]
[1733806852072,0.051524,96998.0,96979.0,0.051534]
[1733806852260,0.051564,96998.0,96979.0,0.051534]
[1733806852962,0.051564,96998.0,96997.0,0.01065942]
[1733806853362,0.051564,96998.0,96997.0,0.00911321]
[1733806854364,0.06060346,96998.0,96997.0,0.00011321]
[1733806854558,0.06160346,96998.0,96997.0,0.00911321]
[1733806855366,0.00104,96998.0,96997.0,0.06063721]
[1733806859570,0.00104,96998.0,96997.0,0.00911321]
[1733806860275,0.00104,96998.0,96997.0,0.01426636]
[1733806860862,0.00104,96998.0,96997.0,0.06579036]
[1733806861172,0.00104,96998.0,96997.0,0.06179036]
[1733806861173,4e-05,96998.0,96997.0,0.06179036]
[1733806861675,4e-05,96998.0,96997.0,0.06179032]
[1733806862170,4e-05,96998.0,96997.0,0.017487]
[1733806862171,0.00104,96998.0,96997.0,0.017487]
[1733806862362,0.052564,96998.0,96997.0,0.017487]
[1733806862562,0.052564,96998.0,96997.0,0.008487]
[1733806862764,0.051564,96998.0,96997.0,0.013487]
[1733806864167,0.052564,96998.0,96997.0,0.015487]
[1733806864363,0.052564,96998.0,96997.0,0.016487]
[1733806864573,0.052564,96998.0,96997.0,0.00811321]
[1733806864771,0.052564,96998.0,96997.0,0.00948812]
[1733806865171,0.052564,96998.0,96997.0,0.00848812]
[1733806865370,0.055564,96998.0,96997.0,0.00848812]
[1733806865976,0.052564,96998.0,96997.0,0.00848812]
[1733806866276,0.06454489,96998.0,96997.0,0.00848812]
[1733806867769,0.06154489,96998.0,96997.0,0.00848812]
[1733806867970,0.06254489,96998.0,96997.0,0.00848812]
[1733806868183,0.06254489,96998.0,96997.0,0.00526721]
[1733806868481,0.06254489,96998.0,96997.0,0.00848846]
[1733806870182,0.06554489,96998.0,96997.0,0.00848846]
[1733806870870,0.06654489,96998.0,96997.0,0.00011321]
[1733806871067,0.06654489,96998.0,96997.0,0.0084883]
[1733806871680,0.06054489,96998.0,96997.0,0.0084883]
[1733806871874,0.06254489,96998.0,96997.0,0.0084883]
[1733806872683,0.06354489,96998.0,96997.0,0.0084883]
[1733806873084,0.06354489,96998.0,96997.0,0.00011321]
[1733806873289,0.06454489,96998.0,96997.0,0.00011321]
[1733806873771,0.06354489,96998.0,96997.0,0.00011321]
[1733806873974,0.06554489,96998.0,96997.0,0.00011321]
[1733806874383,0.31402089,96998.0,96979.0,0.18196173]
[1733806874578,0.051531,96984.0,96980.0,0.00515421]
[1733806874781,0.3608,96985.0,96981.0,0.00837563]
[1733806874782,0.051532,96982.0,96981.0,0.00837563]
[1733806875374,0.051532,96982.0,96981.0,0.00847349]
[1733806875577,0.051532,96982.0,96981.0,0.00847404]
[1733806876279,0.051532,96982.0,96981.0,0.00331947]
[1733806877074,0.051532,96982.0,96981.0,0.0033195]
[1733806877271,0.051532,96982.0,96981.0,0.0063195]
[1733806878073,0.051532,96982.0,96981.0,0.0073195]
[1733806878683,0.051532,96982.0,96981.0,0.0063195]
[1733806878880,0.01035071,96982.0,96978.0,0.18196173]
[1733806879082,0.051533,96980.0,96973.0,0.18201221]
[1733806879290,0.01035071,96982.0,96972.0,0.18201221]
[1733806879291,0.051537,96973.0,96972.0,0.18201221]
[1733806879480,0.051542,96964.0,96962.0,0.30373452]
[1733806879680,0.051542,96964.0,96961.0,0.30528131]
[1733806879877,4e-05,96973.0,96962.0,0.05164337]
[1733806880084,0.07413974,96980.0,96971.0,0.3608]
[1733806880085,0.12567274,96980.0,96971.0,0.3608]
[1733806880280,0.12567274,96980.0,96973.0,0.005]
[1733806880281,0.051534,96978.0,96973.0,0.005]
[1733806880783,0.07413974,96980.0,96971.0,0.3608]
[1733806881088,4e-05,96972.0,96971.0,0.3608]
[1733806882376,0.051578,96972.0,96971.0,0.3608]
[1733806883582,0.051578,96972.0,96971.0,0.3628]
[1733806883789,0.051578,96972.0,96971.0,0.002]
[1733806884090,0.051578,96972.0,96962.0,0.14410037]
[1733806884091,0.051539,96969.0,96967.0,0.18193265]
[1733806884391,0.05154,96967.0,96966.0,0.18192949]
[1733806884780,0.051542,96965.0,96962.0,0.00010037]
[1733806885182,4e-05,96963.0,96962.0,0.00010037]
[1733806885377,4e-05,96963.0,96962.0,0.05164337]
[1733806885892,4e-05,96963.0,96962.0,0.09674975]
[1733806886588,4e-05,96963.0,96962.0,0.34833134]
[1733806887190,0.00104,96963.0,96962.0,0.05320675]
[1733806887393,0.052582,96963.0,96962.0,0.05320675]
[1733806887588,0.052582,96963.0,96962.0,0.00710037]
[1733806888183,0.00104,96963.0,96962.0,0.00810037]
[1733806888497,0.00104,96963.0,96962.0,0.01010037]
[1733806888895,0.00104,96963.0,96962.0,0.05520542]
[1733806889090,0.00104,96963.0,96962.0,0.05320542]
[1733806889400,0.00104,96963.0,96962.0,0.35633001]
[1733806889688,0.00104,96963.0,96962.0,0.32021483]
[1733806889689,4e-05,96963.0,96962.0,0.32021483]
[1733806890289,0.00104,96963.0,96962.0,0.62715397]
[1733806890486,0.00104,96963.0,96962.0,0.05220542]
[1733806891002,0.00104,96963.0,96962.0,0.05542709]
[1733806891191,0.00104,96963.0,96962.0,0.63062838]
[1733806891387,0.00104,96963.0,96962.0,0.63262838]
[1733806891585,0.00104,96963.0,96962.0,0.05942714]
[1733806892395,0.00104,96963.0,96962.0,0.05620542]
[1733806892698,0.00104,96963.0,96962.0,0.05942732]
[1733806892895,4e-05,96963.0,96962.0,0.00532227]
[1733806893099,0.00104,96963.0,96962.0,0.01232227]
[1733806893393,0.00104,96963.0,96962.0,0.06386527]
[1733806893698,0.00104,96963.0,96962.0,0.74245533]
[1733806894085,0.00104,96963.0,96962.0,0.42366527]
[1733806894295,0.00104,96963.0,96962.0,0.69479165]
[1733806894991,0.00104,96963.0,96962.0,0.69479133]
[1733806895193,0.00104,96963.0,96962.0,0.69579133]
[1733806895389,0.00104,96963.0,96962.0,1.10537584]
[1733806895589,0.00104,96963.0,96962.0,0.74089442]
[1733806895800,4e-05,96963.0,96962.0,0.68979133]
[1733806896094,4e-05,96963.0,96962.0,0.69679133]
[1733806896095,0.00104,96963.0,96962.0,0.69679133]
[1733806896491,0.00104,96963.0,96962.0,0.69879133]
[1733806896891,0.00104,96963.0,96962.0,0.69235142]
[1733806897095,0.00104,96963.0,96962.0,0.42022504]
[1733806898292,0.00104,96963.0,96962.0,0.42022875]
[1733806899403,0.01065419,96963.0,96962.0,0.37512195]
[1733806899603,0.00104,96963.0,96962.0,0.37512195]
[1733806902302,0.00104,96963.0,96962.0,0.42022718]
[1733806902496,0.00104,96963.0,96962.0,0.72343925]
[1733806902901,0.00104,96963.0,96962.0,0.69238897]
[1733806903096,0.051532,96983.0,96962.0,1.50638145]
[1733806903296,0.051532,96983.0,96981.0,0.3608]
[1733806903600,0.051532,96983.0,96982.0,0.04832681]
[1733806904002,0.051532,96983.0,96982.0,0.00322158]
[1733806904907,0.052532,96983.0,96982.0,0.00322158]
[1733806905110,0.052532,96983.0,96982.0,0.0483203]
[1733806905994,0.002,96983.0,96982.0,0.00322158]
[1733806906198,0.001,96983.0,96982.0,0.62533029]
[1733806906510,7.769e-05,97000.0,96991.0,0.051527]
[1733806906710,0.00971062,97000.0,96999.0,0.3608]
[1733806907008,7.769e-05,97000.0,96999.0,0.41547082]
[1733806907206,7.769e-05,97000.0,96999.0,0.65778431]
[1733806907506,7.769e-05,97000.0,96999.0,0.61268838]
[1733806907898,7.769e-05,97000.0,96999.0,0.37037489]
[1733806908098,7.769e-05,97000.0,96999.0,0.61257831]
[1733806909107,0.00707769,97000.0,96999.0,0.61247919]
[1733806909506,0.00207769,97000.0,96999.0,0.61247919]
[1733806909700,0.00307769,97000.0,96999.0,0.61247919]